Cogmind - Beta 17 @@@ ROGUE MODE // 2026.08.16 @ 13:31:52 Player: Marc Result: Self-destructed Performance ------------- Evolutions (2) 1000 Regions Visited (3) 600 Robots Destroyed (32) 160 Value Destroyed (1040) 1040 Prototype IDs (2) 40 Alien Tech Used (0) 0 Bonus (0) 0 TOTAL SCORE: 2840 Bonus ------- None Cogmind --------- Core Integrity 448/550 Matter 226/300 Energy 160/160 System Corruption 2% Temperature Cool (0) Movement Walking (120) Location -8/Materials Parts ------- > --- POWER (1) -------- Light Nuclear Core > --- PROPULSION (3) --- Aluminum Leg Aluminum Leg Aluminum Leg > --- UTILITY (5) ------ Medium Storage Unit Sensor Array Signal Interpreter Terrain Scanner Improved Targeting Computer > --- WEAPON (2) ------- Lightning Gun Lightning Gun > --- INVENTORY (10) --- Ion Engine Light Ion Engine Heat Sink Hardlight Generator EM Pulse Gun EM Pulse Gun Lightning Gun Lightning Gun Grenade Launcher Grenade Launcher Peak State ------------ > --- POWER ------------ Light Nuclear Core > --- PROPULSION ------- Aluminum Leg Aluminum Leg Aluminum Leg > --- UTILITY ---------- Medium Storage Unit Sensor Array Signal Interpreter Terrain Scanner Improved Targeting Computer > --- WEAPON ----------- Lightning Gun Lightning Gun > --- INVENTORY -------- Ion Engine Light Ion Engine Heat Sink Hardlight Generator EM Pulse Gun EM Pulse Gun Lightning Gun Lightning Gun Grenade Launcher Grenade Launcher [Rating: 21] Favorites ----------- Power Ion Engine Engine Ion Engine Power Core Light Nuclear Core Propulsion Aluminum Leg Leg Aluminum Leg Utility Medium Storage Unit Device Terrain Scanner Storage Medium Storage Unit Processor Signal Interpreter Weapon Small Laser Energy Gun Small Laser Ballistic Gun Assault Rifle Launcher Grenade Launcher Build | -11 -10 -9 -8 ------- Run | Yrd Mat Mat Mat Slots Evolved 4 | . . 2 2 Power . | . . . . Propulsion 1 | . . . 1 Utility 3 | . . 2 1 Weapon . | . . . . Parts Attached 24 | . 9 8 7 Power 4 | . 2 1 1 Engine 3 | . 2 1 . Core 1 | . . . 1 Reactor . | . . . . Propulsion 5 | . 1 2 2 Treads . | . . . . Leg 5 | . 1 2 2 Wheel . | . . . . Hover . | . . . . Flight . | . . . . Utility 6 | . 2 2 2 Device 3 | . 1 1 1 Storage 1 | . 1 . . Processor 2 | . . 1 1 Hackware . | . . . . Protection . | . . . . Artifact . | . . . . Weapon 9 | . 4 3 2 Energy Gun 6 | . 2 2 2 Energy Cannon . | . . . . Ballistic Gun 1 | . 1 . . Ballistic Cannon . | . . . . Launcher 2 | . 1 1 . Special Weapon . | . . . . Impact Weapon . | . . . . Slashing Weapon . | . . . . Piercing Weapon . | . . . . Special Melee Weapon . | . . . . Unidentified Prototypes 2 | . . 2 . Corrupted Parts 1 | . . . 1 System Corruption 2 | . . . 2 Parts Lost 3 | . 1 1 1 Power 1 | . . . 1 Propulsion 1 | . . 1 . Utility . | . . . . Weapon 1 | . 1 . . Highest Loss Streak 1 | . 1 1 1 To Critical Strikes . | . . . . Average Backups 8 | . 7 8 8 Power 1 | . 1 1 1 Propulsion 1 | . 1 2 . Utility 1 | . . 1 2 Weapon 3 | . 2 3 4 Tool/Special . | . . . . Unused Backups 16 | . 9 3 4 Power 1 | . . . 1 Propulsion 9 | . 6 3 . Utility 2 | . 1 . 1 Weapon 4 | . 2 . 2 Tool/Special . | . . . . Average Slot Usage (%) 92 | . 85 99 93 Engine 11 | . 14 11 6 Leg 24 | . 28 22 22 Device 11 | . . 22 18 Storage 12 | . 14 11 9 Processor 7 | . . 10 17 Energy Gun 16 | . 12 21 17 Ballistic Gun 6 | . 14 . . Peak Build Rating 21 | . 8 14 21 Average Rating 9 | . 6 10 15 On Entrance 8 | 6 6 8 13 Avg Prop Armor Cover (%) . | . . . . Naked Turns . | . . . . Heaviest Build 25 | 12 20 25 25 Greatest Support 30 | 20 20 20 30 Greatest Overweight (x) 1 | . . 1 1 Average Overweight (x) . | . . . . Largest Inventory Capacity 10 | . 10 10 10 Average Capacity 9 | . 8 10 10 Most Carried 10 | . 10 10 10 Average Carried 8 | . 7 8 8 Final Capacity 10 | 8 10 10 10 Final Carried 10 | 6 10 10 10 Class Distribution -------------------- 58% | Skirmisher 41% | Mutant Dominant Class ---------------- Mutant | -10/Materials Skirmisher | -9/Materials Skirmisher | -8/Materials Resources | -11 -10 -9 -8 ----------- Run | Yrd Mat Mat Mat Matter Collected 653 | 200 111 234 108 Remotely . | . . . . Salvage Created 1075 | . 190 545 340 Parts 67 | . 23 31 13 Haulers Intercepted 3 | . . 3 . Recyclers Shooed . | . . . . Parts Field Recycled . | . . . . Retrieved Matter . | . . . . Parts Self-Destructed . | . . . . Prevented . | . . . . Parts Restored . | . . . . Kills | -11 -10 -9 -8 ------- Run | Yrd Mat Mat Mat Combat Hostiles Destroyed 26 | . 7 8 11 Guns 12 | . 4 5 3 AOE 14 | . 3 3 8 Classes Destroyed 8 | . 3 5 . Worker 1 | . . 1 . Builder 1 | . 1 . . Hauler 3 | . . 3 . Watcher 1 | . . 1 . Swarmer 3 | . 3 . . Grunt 17 | . 4 5 8 Duelist 2 | . . 1 1 Sentry 4 | . . 2 2 Best Kill Streak 9 | . 4 7 9 Combat Bots Only 9 | . 3 5 9 Max Kills in Single Turn 3 | . 3 3 3 Gunslinging . | . . . . Exploded 3 | . 2 3 3 Melee . | . . . . Uniques/NPCs Destroyed . | . . . . Combat | -11 -10 -9 -8 -------- Run | Yrd Mat Mat Mat Hostile Shots Fired 125 | . 41 43 41 Missed 44 | . 14 14 16 Hits 81 | . 27 29 25 Projectile 81 | . 27 29 25 Critical Strikes 4 | . 1 1 2 Damage Taken 1157 | . 327 434 396 Core 233 | . 52 79 102 Absorbed by Shields . | . . . . Core Remaining (%) 86 | 100 79 80 . Volleys Fired 61 | . 20 31 10 Largest 2 | . 2 2 2 Hottest 110 | . 60 85 110 Shots Fired 115 | . 33 62 20 Gun 103 | . 29 60 14 Cannon . | . . . . Launcher 12 | . 4 2 6 Special . | . . . . Kinetic 22 | . 22 . . Thermal 28 | . . 26 2 Explosive 12 | . 4 2 6 Electromagnetic 53 | . 7 34 12 Robot Hit Streak 23 | . 7 13 23 Robot Miss Streak 5 | . 5 3 1 Penetration Max . | . . . . Secondary Targets . | . . . . Shots Hit Robots 75 | . 18 42 15 Core Hits 64 | . 14 22 28 Critical Kills . | . . . . Critical Parts Destroyed . | . . . . Critical Strikes 1 | . 1 . . Corrupt 1 | . 1 . . Melee Attacks . | . . . . Impact . | . . . . Slashing . | . . . . Piercing . | . . . . Sneak Attacks . | . . . . Combat Hostiles . | . . . . Follow-up Attacks . | . . . . Damage Inflicted 2168 | . 484 826 858 Guns 930 | . 207 541 182 Cannons . | . . . . Explosions 1238 | . 277 285 676 Melee . | . . . . Ramming . | . . . . Kinetic 155 | . 155 . . Thermal 352 | . . 329 23 Explosive 1116 | . 277 163 676 Electromagnetic 545 | . 52 334 159 Impact . | . . . . Slashing . | . . . . Piercing . | . . . . Highest Corruption 2 | . 1 . 2 Average Corruption 1 | . 1 . 2 Corruption Purged . | . . . . Corruption Blocked . | . . . . Effects 2 | . 2 . . Matter Fused 1 | . 1 . . Alerts 1 | . 1 . . Overload Shots . | . . . . Overflow Damage 1 | . . 1 . Projectiles . | . . . . Explosions 1 | . . 1 . Melee . | . . . . Knockbacks . | . . . . Impact . | . . . . Kinetic . | . . . . Secondary . | . . . . Self-Inflicted Damage 36 | . . 36 . Shots 1 | . . 1 . Rammed . | . . . . Targets Rammed 1 | . 1 . . Kicked 1 | . 1 . . Crushed . | . . . . Highest Temperature 144 | . 55 105 144 Average Temperature 35 | . 25 29 66 Received Heat Transfer 597 | . 186 159 252 Siege Activations . | . . . . Martial Activations . | . . . . Shielding Activations . | . . . . Robots Disrupted . | . . . . Combat Hostiles . | . . . . Robots Corrupted . | . . . . Combat Hostiles . | . . . . Parts Fried 1 | . . 1 . Impact Corruptions . | . . . . Robots Melted . | . . . . Combat Hostiles . | . . . . Parts Melted . | . . . . Heat Transferred 675 | . . 625 50 Parts Sabotaged . | . . . . Parts Stolen . | . . . . Parts Stripped . | . . . . Power Chain Reactions 1 | . . 1 . Alert | -11 -10 -9 -8 ------- Run | Yrd Mat Mat Mat Maximum Alert Level 1 | . . . 1 Low Security (%) 94 | . 100 100 63 Level 1 5 | . . . 36 Level 2 . | . . . . Level 3 . | . . . . Level 4 . | . . . . Level 5 . | . . . . High Security . | . . . . Max Security . | . . . . Peak Influence 223 | . 111 149 223 Initial 38 | . . 24 38 Average 49 | . 25 50 119 Influence Increases 761 | . 202 276 283 Destroy 0b10 Robot/C 520 | . 140 160 220 Destroy 0b10 Robot/NC 30 | . 5 25 . Destroy Leader 108 | . 20 38 50 Successful Hack 11 | . 6 5 . Disable Machine 15 | . . 15 . Destroy Structure 47 | . 16 18 13 Lose Combat Pursuer 30 | . 15 15 . Influence Decreases 548 | . 145 242 161 Entered New Map 86 | . . 33 53 Time Decay 442 | . 145 199 98 Lost Part 20 | . . 10 10 Squads Dispatched 5 | . 3 . 2 Investigation 3 | . 3 . . Extermination . | . . . . Reinforcement 2 | . . . 2 Assault . | . . . . Garrison . | . . . . Intercept . | . . . . Searches Triggered . | . . . . Construction Impeded . | . . . . Haulers Reinforced . | . . . . Active Scanning Responses . | . . . . Cargo Convoy Interrupts . | . . . . Stealth | -11 -10 -9 -8 --------- Run | Yrd Mat Mat Mat Distress Signals 5 | . 2 1 2 Communications Jammed . | . . . . Distress Signals . | . . . . Times Spotted 41 | . 12 14 15 Peak Tracking Total 10 | . 3 7 10 Tactical Retreats 2 | . 1 1 . Traps | -11 -10 -9 -8 ------- Run | Yrd Mat Mat Mat Traps Triggered 1 | . 1 . . Indirectly . | . . . . Trap Hack Attempts . | . . . . Triggered . | . . . . Disarmed . | . . . . Reprogrammed . | . . . . Reused . | . . . . Traps Extracted . | . . . . Installed . | . . . . Triggered . | . . . . Machines | -11 -10 -9 -8 ---------- Run | Yrd Mat Mat Mat Machines Disabled 1 | . . 1 . Max in Single Turn 1 | . . 1 . Machines Repaired . | . . . . Machines Dismantled . | . . . . Machines Sabotaged . | . . . . Overloaded Fab Kills . | . . . . Hacking | -11 -10 -9 -8 --------- Run | Yrd Mat Mat Mat Machines Accessed 8 | . 5 2 1 Terminals 7 | . 5 2 . Fabricators . | . . . . Repair Stations 1 | . . . 1 Recycling Units . | . . . . Scanalyzers . | . . . . Garrison Access . | . . . . Total Hacks 24 | . 16 6 2 Successful 11 | . 7 3 1 Failed 13 | . 9 3 1 Catastrophic 2 | . 2 . . Database Lockouts . | . . . . Manual 15 | . 11 4 . Terminals 22 | . 16 6 . Fabricators . | . . . . Repair Stations 2 | . . . 2 Recycling Units . | . . . . Scanalyzers . | . . . . Garrison Access . | . . . . Terminal Hacks 4 | . 3 1 . Locate Traps 1 | . 1 . . Maintenance Status 1 | . 1 . . Recall Investigation 1 | . 1 . . Hauler Manifests 1 | . . 1 . Fabricator Hacks . | . . . . Repair Station Hacks 1 | . . . 1 Scan Component 1 | . . . 1 Recycling Unit Hacks . | . . . . Scanalyzer . | . . . . Garrison Access Hacks . | . . . . Unauthorized Hacks 6 | . 4 2 . Terminals 6 | . 4 2 . Track 1 | . 1 . . Botnet 5 | . 3 2 . Fabricators . | . . . . Repair Stations . | . . . . Recycling Units . | . . . . Scanalyzers . | . . . . Garrison Access . | . . . . Data Cores Recovered . | . . . . Used . | . . . . Hacking Detections 6 | . 5 1 . Full Trace Events 2 | . 2 . . Feedback Events 1 | . 1 . . Corruption 1 | . 1 . . Feedback Blocked . | . . . . Robot Schematics Acquired . | . . . . Robots Built . | . . . . Authchips . | . . . . Time . | . . . . Total Robot Build Rating . | . . . . Part Schematics Acquired . | . . . . Parts Built . | . . . . Authchips . | . . . . Time . | . . . . Total Part Build Rating . | . . . . Part Studies Acquired . | . . . . Parts Repaired . | . . . . Time . | . . . . Parts Recycled . | . . . . Recycled Matter . | . . . . Retrieved Matter . | . . . . Retrieved Components . | . . . . Parts Scanalyzed . | . . . . Part Schematics Acquired . | . . . . Parts Damaged . | . . . . Bothacking | -11 -10 -9 -8 ------------ Run | Yrd Mat Mat Mat Used RIF Installer . | . . . . Robots Hacked . | . . . . Non-combat . | . . . . Combat . | . . . . Robot Hacks Applied . | . . . . Relay Couplers Released . | . . . . Fabnet Peak Effective % . | . . . . Robots Rewired . | . . . . Allies Hacked . | . . . . Hacks Repelled . | . . . . Allies | -11 -10 -9 -8 -------- Run | Yrd Mat Mat Mat Total Allies . | . . . . Largest Group . | . . . . Highest-Rated Group . | . . . . Highest-Rated Ally . | . . . . Total Orders . | . . . . Ally Attacks . | . . . . Total Damage . | . . . . Kills . | . . . . Allies Corrupted . | . . . . Allies Melted . | . . . . Intel | -11 -10 -9 -8 ------- Run | Yrd Mat Mat Mat Active Infowar (turns) 873 | . 41 602 230 Sensors 832 | . . 602 230 Terrain 873 | . 41 602 230 Robot Analysis Total . | . . . . Derelict Logs Recovered . | . . . . Drone Launches . | . . . . Drone Recoveries . | . . . . Exploration | -11 -10 -9 -8 ------------- Run | Yrd Mat Mat Mat Turns Passed 1510 | . 678 602 230 Spaces Moved 686 | 1 310 273 102 Core . | . . . . Treads . | . . . . Legs 686 | 1 310 273 102 Wheels . | . . . . Hover . | . . . . Flight . | . . . . Fastest Speed 120 | 120 120 120 120 Average Speed 132 | 120 120 141 146 Slowest Speed 190 | 120 120 190 190 Overloaded Moves . | . . . . Propulsion Burnouts . | . . . . Robots Hopped . | . . . . Potential Cave-ins . | . . . . Cave-ins Triggered . | . . . . Exploration Rate (%) 24 | 2 52 27 17 Regions Visited 3 Branch Regions . Pre-discovered Areas . | . . . . Known Exits Taken 1 | . . 1 . Unknown Exits Taken 2 | 1 1 . . Scrap Searched . | . . . . Spaces Dug . | . . . . Terrain Destroyed 48 | . 17 16 15 Melee . | . . . . Projectile . | . . . . AOE 48 | . 17 16 15 Terrain Rammed . | . . . . Walls Destroyed . | . . . . Machines Disabled . | . . . . Actions | -11 -10 -9 -8 --------- Run | Yrd Mat Mat Mat Total 1174 | . 584 427 163 Wait 347 | . 219 101 27 Move 683 | . 309 272 102 Hop . | . . . . Pick Up 26 | . 15 5 6 Fast Attach 1 | . . 1 . Attach 13 | . 3 4 6 Detach 5 | . 1 1 3 Swap 21 | . 7 8 6 Drop 16 | . 9 4 3 Fire 61 | . 20 31 10 Melee . | . . . . Ram . | . . . . Kick 1 | . 1 . . Crush . | . . . . Escape Stasis . | . . . . Rewire . | . . . . Trap . | . . . . Miscellaneous . | . . . . Route ------- -11/Scrapyard -10/Materials -9/Materials -8/Materials History --------- Turn | Location | Event 1 | -11/Scrapyard | Discovered new exit (range 0) 1 | -11/Scrapyard | Entered Materials 310 | -10/Materials | Build established: Mutant 615 | -10/Materials | Discovered new exit (range 14) 679 | -10/Materials | Entered another Materials area 679 | -9/Materials | Evolved 2 slots: Utility x2 933 | -9/Materials | Build established: Skirmisher 1249 | -9/Materials | Discovered new exit (range 16) 1279 | -9/Materials | Identified exit to Materials 1281 | -9/Materials | Entered another Materials area 1281 | -8/Materials | Evolved 2 slots: Propulsion x1, Utility x1 1419 | -8/Materials | Destroyed 9 combat bots 1511 | -8/Materials | Self-destructed Last Messages --------------- 01480_ K-01 Serf collects debris. 01481_ G-47 Trooper IFF system glitched. 01481_ U-05 Engineer builds a Wall. 01483_ K-01 Serf collects debris. 01486_ G-47 Trooper destroyed. 01486_ U-05 Engineer lays Concrete. 01487_ K-01 Serf collects debris. 01488_ U-05 Engineer lays Concrete. 01490_ K-01 Serf collects debris. 01491_ Acquired Corrupted Lgt. Nuclear Core. 01492_ Integrated Corrupted Lgt. Nuclear Core (+2). 01493_ K-01 Serf collects debris. 01493_ Acquired 53 matter. 01494_ K-01 Serf collects debris. 01494_ U-05 Engineer lays Concrete. 01495_ Acquired 55 matter. 01497_ U-05 Engineer lays Concrete. 01497_ K-01 Serf collects debris. 01498_ U-05 Engineer lays Concrete. 01499_ K-01 Serf collects debris. Map ----- +----------------------------------------------------+ | ?????????????????????????????????????????????????? | | ?????????????????????????????????????????????????? | | ?????????????????????????????????????????????????? | | ?????????????????????????????????????????????????? | | ?????????????????????????????????????????????????? | | ?????????????????????????????????????????????????? | | ?????????????????? ????????????????????????????? | | ?????????????????# #???????????????????????????? | | ?????????????????# #???????????????????????????? | | ?????????????????# #?#?????????????????????????? | | ?????????##??????# #???????????????????????????? | | ??#????????#????## # ??????????????????????????? | | ?#??????##???????# #?"""??#????????????????????? | | ???#?#????#??????# #?"""???????????????????????? | | #????????#???????# # ""? ??????????????????????? | | ?#?#??##?????#???# # ?????????????????????????? | | ??????#??######### x+ ? ????????????????????????? | | ????#????#]]!! ## ############????????????????? | | ????####?#]]!![[## ##! +????????????????? | | ???## ## ## ## #????????????????? | | #### # [# # = #????????????????? | | == = # """ #????????????????? | | = % ! ! + """ #????????????????? | | %% = = # """ #?????X??????????? | | ###+### ######/ # "T" #????????????????? | | # #?#??## ## @ """ #????????????????? | | # * ##????# #####o######????????????????? | | # #?????# #?#?? #?????????????????????? | | # #????## #?#???#?????????????????????? | | # #?????# #???????????????????????????? | | # #?????# #?#?????????????????????????? | | # ] ##??### #???????????????????????????? | | # /#?????# #???????????????????????????? | | # #????## #???????????????????????????? | | # #?????# #???????????????????????????? | | # #?????# #???????????????????????????? | | #########?????# #???????????????????????????? | | # #???????????? #???????????????????????????? | | #????#?????#????????????????????????????????? | | # #???????????????????????????????????????????? | | ###????#??????????????????????????????????????? | | #?#######?????????????????????????????????????? | | #? #??????????????????????????????????????? | | # #??????????????????????????????????????? | | # #??????????????????????????????????????? | | + #??????????????????????????????????????? | | # #??????????????????????????????????????? | | # #??????????????????????????????????????? | | #?######??????????????????????????????????????? | | ####?????????????????????????????????????????????? | +----------------------------------------------------+ Best States ------------- Heat Dissipation 31 Energy Generation 14 Energy Capacity 280 Matter Stores 300 Matter Capacity 300 Sight Range 16 Robot Scan Range 14 Terrain Scan Range 14 Terrain Scan Density 10 Evasion (%) 55 Targeting Accuracy 6 Item Schematics ----------------- None Robot Schematics ------------------ None Fabricated ------------ Nothing Repaired ---------- Nothing Studied --------- None Alien Tech Used ----------------- None Achievements -------------- None Challenges ------------ None Game ------ Seed PlasmaMobileManipulator Manual? 0 Play Time 00:15:04 Cumulative 25.1 hours Start 2026.08.16 @ 13:11:36 End 2026.08.16 @ 13:31:52 Sessions 1 Manual Loads 0 Difficulty Rogue Special Mode None Game No. 75 Rogue 68 Adventurer 7 Explorer 0 Win Type - Total 0 Types 0/0/0/0/0/0/0/0/0/0 Lore% 28 Gallery% 31 Achievement% 26 Wizard Run 0 Options --------- Layout 0 ASCII 0 Keyboard 0 Movement Mouse Keybinds 0 Fullscreen 1 Font 18/SmallcapsGlow Map View 38x25 Zoom Use 99% Tactical HUD 1 Map Filters NONE Filters NONE Steam 1 RUN: d6588d72-425e-4e06-bc91-0848e8804be4